fUSD/lending_fUSD_20251227
["ID","MTS","AMOUNT","RATE_DAILY","PERIOD"]
[399877932,1766799040875,-506.17215584,0.000154,2]
[399877933,1766799040884,-1500.0,0.00015468,2]
[399877934,1766799040894,-169.42,0.00015539,2]
[399877935,1766799040904,-4757.34655474,0.00015556,2]
[399877936,1766799040917,-196.91433714,0.00015559,2]
[399877937,1766799040927,-736.0,0.00015658,2]
[399877938,1766799040937,-2431.0,0.00015794,2]
[399877939,1766799040947,-8979.69579734,0.00015857,2]
[399877940,1766799040957,-2269.14457347,0.00015879,2]
[399877941,1766799040966,-999.0,0.00015886,3]
[399877942,1766799040975,-482.25064201,0.00015914,2]
[399877943,1766799040986,-500.0,0.00015973,2]
[399877944,1766799040995,-500.0,0.00015973,2]
[399877945,1766799041005,-500.0,0.00015973,2]
[399877946,1766799041015,-500.0,0.00015973,2]
[399877947,1766799041024,-500.0,0.00015973,2]
[399877948,1766799041034,-500.0,0.00015973,2]
[399877949,1766799041043,-500.0,0.00015973,2]
[399877950,1766799041053,-500.0,0.00015973,2]
[399877951,1766799041062,-500.0,0.00015973,2]
[399877952,1766799041072,-500.89276948,0.00015973,2]
[399877953,1766799041082,-500.0,0.00015973,2]
[399877954,1766799041091,-500.0,0.00015973,2]
[399877955,1766799041102,-500.0,0.00015973,2]
[399877956,1766799041111,-500.0,0.00015973,2]
[399877957,1766799041120,-534.79304432,0.00015973,2]
[399877958,1766799041130,-500.0,0.00015973,2]
[399877959,1766799041140,-500.0,0.00015973,2]
[399877960,1766799041149,-500.0,0.00015973,2]
[399877961,1766799041158,-500.0,0.00015973,2]
[399877962,1766799041168,-500.0,0.00015973,2]
[399877963,1766799041178,-500.0,0.00015973,2]
[399877964,1766799041187,-500.91892275,0.00015973,2]
[399877965,1766799041197,-501.32987729,0.00015973,2]
[399877966,1766799041206,-500.0,0.00015973,2]
[399877967,1766799041215,-500.76503002,0.00015973,2]
[399877968,1766799041224,-500.0,0.00015973,2]
[399877969,1766799041234,-500.0,0.00015973,2]
[399877970,1766799041243,-500.0,0.00015973,2]
[399877971,1766799041253,-500.0,0.00015973,2]
[399877972,1766799041263,-500.0,0.00015973,2]
[399877973,1766799041273,-500.0,0.00015973,2]
[399877974,1766799041283,-500.0,0.00015973,2]
[399877975,1766799041294,-500.0,0.00015973,2]
[399877976,1766799041304,-500.0,0.00015973,2]
[399877977,1766799041314,-500.0,0.00015973,2]
[399877978,1766799041324,-500.0,0.00015973,2]
[399877979,1766799041334,-500.0,0.00015973,2]
[399877980,1766799041343,-500.0,0.00015973,2]
[399877981,1766799041353,-500.0,0.00015973,2]
[399877982,1766799041363,-500.0,0.00015973,2]
[399877983,1766799041372,-500.0,0.00015973,2]
[399877984,1766799041382,-151.66634213,0.00015999,2]
[399877985,1766799041392,-438844.59770785,0.00016,4]
[399877986,1766799041409,-230592.88510442,0.00016,4]
[399877987,1766799041419,-1263.0,0.00016014,2]
[399877988,1766799041429,-432.0,0.00016014,2]
[399877989,1766799041438,-912.0,0.00016014,2]
[399877990,1766799041447,-1198.0,0.00016014,2]
[399877991,1766799041457,-4809.0,0.00016014,2]
[399877992,1766799041466,-1610.0,0.00016014,2]
[399877993,1766799041475,-731.69372668,0.00016016,2]
[399877994,1766799041485,-200.0,0.00016029,2]
[399877995,1766799041495,-265.0,0.0001604,2]
[399877996,1766799041504,-2000.0,0.00016059,2]
[399877997,1766799041513,-501.02283993,0.00016059,2]
[399877998,1766799041523,-3292.0,0.00016144,2]
[399877999,1766799041533,-322.6107,0.00016149,2]
[399878000,1766799041543,-500.0,0.00016149,2]
[399878001,1766799041552,-500.0,0.00016149,2]
[399878002,1766799041561,-500.0,0.00016149,2]
[399878003,1766799041571,-500.0,0.00016149,2]
[399878004,1766799041580,-500.0,0.00016149,2]
[399878005,1766799041590,-500.0,0.00016149,2]
[399878006,1766799041599,-500.0,0.00016149,2]
[399878007,1766799041609,-500.0,0.00016149,2]
[399878008,1766799041619,-500.0,0.00016149,2]
[399878009,1766799041628,-500.0,0.00016149,2]
[399878010,1766799041637,-500.0,0.00016149,2]
[399878011,1766799041647,-500.0,0.00016149,2]
[399878012,1766799041657,-500.0,0.00016149,2]
[399878013,1766799041666,-454.88526239,0.00016149,2]
[399878014,1766799041675,-500.0,0.00016149,2]
[399878015,1766799041685,-500.0,0.00016149,2]
[399878016,1766799041696,-500.0,0.00016149,2]
[399878017,1766799041705,-496.47127164,0.00016149,2]
[399878018,1766799041715,-500.0,0.00016149,2]
[399878019,1766799041725,-500.0,0.00016149,2]
[399878020,1766799041734,-500.0,0.00016149,2]
[399878021,1766799041743,-500.0,0.00016149,2]
[399878022,1766799041752,-500.0,0.00016149,2]
[399878023,1766799041762,-500.0,0.00016149,2]
[399878024,1766799041771,-200.0,0.00016149,2]
[399878025,1766799041782,-500.0,0.00016149,2]
[399878026,1766799041793,-500.0,0.00016149,2]
[399878027,1766799041802,-207.4,0.00016149,2]
[399878028,1766799041812,-500.0,0.00016149,2]
[399878029,1766799041822,-215.0738,0.00016149,2]
[399878030,1766799041833,-500.0,0.00016149,2]
[399878031,1766799041843,-500.0,0.00016149,2]
[399878032,1766799041852,-223.0315306,0.00016149,2]
[399878033,1766799041863,-500.0,0.00016149,2]
[399878034,1766799041873,-500.0,0.00016149,2]
[399878035,1766799041884,-231.28369723,0.00016149,2]
[399878036,1766799041893,-250.0,0.00016149,2]
[399878037,1766799041903,-500.0,0.00016149,2]
[399878038,1766799041916,-500.0,0.00016149,2]
[399878039,1766799041926,-239.84119403,0.00016149,2]
[399878040,1766799041936,-250.0,0.00016149,2]
[399878041,1766799041946,-500.0,0.00016149,2]
[399878042,1766799041955,-500.0,0.00016149,2]
[399878043,1766799041965,-250.0,0.00016149,2]
[399878044,1766799041975,-248.71531821,0.00016149,2]
[399878045,1766799041985,-500.0,0.00016149,2]
[399878046,1766799041995,-500.0,0.00016149,2]
[399878047,1766799042005,-257.91778498,0.00016149,2]
[399878048,1766799042015,-250.0,0.00016149,2]
[399878049,1766799042025,-250.0,0.00016149,2]
[399878050,1766799042034,-500.0,0.00016149,2]
[399878051,1766799042044,-500.0,0.00016149,2]
[399878052,1766799042054,-267.46074303,0.00016149,2]
[399878053,1766799042063,-250.0,0.00016149,2]
[399878054,1766799042073,-396.27846837,0.00016149,2]
[399878055,1766799042083,-500.0,0.00016149,2]
[399878056,1766799042093,-277.35679052,0.00016149,2]
[399878057,1766799042102,-250.0,0.00016149,2]
[399878058,1766799042112,-250.0,0.00016149,2]
[399878059,1766799042122,-250.0,0.00016149,2]
[399878060,1766799042131,-250.0,0.00016149,2]
[399878061,1766799042140,-250.0,0.00016149,2]
[399878062,1766799042149,-250.0,0.00016149,2]
[399878063,1766799042159,-250.0,0.00016149,2]
[399878064,1766799042169,-250.0,0.00016149,2]
[399878065,1766799042179,-250.0,0.00016149,2]
[399878066,1766799042188,-250.0,0.00016149,2]
[399878067,1766799042198,-250.0,0.00016149,2]
[399878068,1766799042207,-250.0,0.00016149,2]
[399878069,1766799042217,-250.0,0.00016149,2]
[399878070,1766799042226,-250.0,0.00016149,2]
[399878071,1766799042236,-250.0,0.00016149,2]
[399878072,1766799042245,-250.0,0.00016149,2]
[399878073,1766799042254,-250.0,0.00016149,2]
[399878074,1766799042264,-250.0,0.00016149,2]
[399878075,1766799042273,-250.0,0.00016149,2]
[399878076,1766799042284,-250.0,0.00016149,2]
[399878077,1766799042293,-250.0,0.00016149,2]
[399878078,1766799042303,-250.0,0.00016149,2]
[399878079,1766799042312,-250.0,0.00016149,2]
[399878081,1766799042520,-578.20924308,0.00016149,2]
[399878082,1766799042532,-250.0,0.00016149,2]
[399878084,1766799042541,-261.58626416,0.00016149,2]
[399878086,1766799042550,-250.0,0.00016149,2]
[399878088,1766799042559,-250.0,0.00016149,2]
[399878089,1766799042568,-500.0,0.00016149,2]
[399878090,1766799042577,-7365.47430086,0.000162,5]
[399878091,1766799042587,-250.0,0.00016214,2]
[399878092,1766799042597,-196.91433714,0.00016229,2]
[399878093,1766799042607,-1000.0,0.0001637,2]
[399878094,1766799042616,-8979.69579734,0.00016378,2]
[399878095,1766799042625,-2269.14457347,0.00016389,2]
[399878096,1766799042635,-376.61457365,0.00016421,2]
[399878097,1766799042644,-150.0,0.00016438,2]
[399878098,1766799042653,-710.7,0.00016438,2]
[399878099,1766799042663,-500.0,0.00016438,2]
[399878100,1766799042672,-500.0,0.00016438,2]
[399878101,1766799042682,-500.0,0.00016438,2]
[399878102,1766799042691,-519.58203716,0.00016438,2]
[399878103,1766799042701,-500.0,0.00016438,2]
[399878104,1766799042710,-500.0,0.00016438,2]
[399878105,1766799042719,-500.0,0.00016438,2]
[399878106,1766799042729,-500.0,0.00016438,2]
[399878107,1766799042738,-500.0,0.00016438,2]
[399878108,1766799042747,-500.0,0.00016438,2]
[399878109,1766799042757,-500.0,0.00016438,2]
[399878110,1766799042766,-500.0,0.00016438,2]
[399878111,1766799042775,-500.0,0.00016438,2]
[399878112,1766799042784,-500.0,0.00016438,2]
[399878113,1766799042794,-500.0,0.00016438,2]
[399878114,1766799042803,-500.0,0.00016438,2]
[399878115,1766799042812,-500.0,0.00016438,2]
[399878116,1766799042822,-500.0,0.00016438,2]
[399878117,1766799042831,-500.0,0.00016438,2]
[399878118,1766799042841,-500.0,0.00016438,2]
[399878119,1766799042850,-500.0,0.00016438,2]
[399878120,1766799042860,-500.0,0.00016438,2]
[399878121,1766799042869,-500.0,0.00016438,2]
[399878122,1766799042878,-500.0,0.00016438,2]
[399878123,1766799042887,-500.0,0.00016438,2]
[399878124,1766799042897,-500.0,0.00016438,2]
[399878125,1766799042908,-549.99999999,0.00016438,2]
[399878126,1766799042919,-500.0,0.00016438,2]
[399878127,1766799042929,-500.0,0.00016438,2]
[399878128,1766799042938,-9989.14,0.00016438,2]
[399878129,1766799042948,-476.7,0.00016438,2]
[399878130,1766799042958,-3665.0,0.00016438,2]
[399878131,1766799042968,-164.58,0.0001644,2]
[399878132,1766799042979,-164.58,0.0001644,2]
[399878133,1766799042988,-164.58,0.0001644,2]
[399878134,1766799042998,-164.58,0.0001644,2]
[399878135,1766799043007,-164.58,0.0001644,2]
[399878136,1766799043016,-164.58,0.0001644,2]
[399878137,1766799043026,-164.58,0.0001644,2]
[399878138,1766799043035,-164.58,0.0001644,2]
[399878139,1766799043044,-164.58,0.0001644,2]
[399878140,1766799043053,-150.0,0.00016465,2]
[399878141,1766799043063,-587.77940564,0.0001647,2]
[399878142,1766799043073,-203.08372064,0.00016493,2]
[399878143,1766799043082,-376.61457363,0.00016517,2]
[399878144,1766799043092,-502.36597635,0.00016521,2]
[399878145,1766799043102,-501.62552641,0.00016521,2]
[399878146,1766799043112,-502.51080525,0.00016521,2]
[399878147,1766799043121,-1000.0,0.00016521,2]
[399878148,1766799043131,-500.47493987,0.00016521,2]
[399878149,1766799043140,-500.0,0.00016521,2]
[399878150,1766799043150,-1000.0,0.00016521,2]
[399878151,1766799043159,-501.55278646,0.00016521,2]
[399878152,1766799043168,-582.06225981,0.00016521,2]
[399878153,1766799043177,-501.09853648,0.00016521,2]
[399878154,1766799043187,-299.72437888,0.00016521,2]
[399878155,1766799043198,-501.27464861,0.00016521,2]
[399878156,1766799043208,-500.0,0.00016521,2]
[399878157,1766799043217,-501.54516283,0.00016521,2]
[399878158,1766799043227,-1000.0,0.00016521,2]
[399878159,1766799043236,-501.52379786,0.00016521,2]
[399878160,1766799043246,-501.47129167,0.00016521,2]
[399878161,1766799043255,-500.0,0.00016521,2]
[399878162,1766799043264,-501.64987831,0.00016521,2]
[399878163,1766799043274,-502.41625795,0.00016521,2]
[399878165,1766799043283,-500.64440302,0.00016521,2]
[399878166,1766799043292,-500.56640206,0.00016521,2]
[399878167,1766799043302,-1000.0,0.00016521,2]
[399878168,1766799043311,-500.63339465,0.00016521,2]
[399878169,1766799043320,-502.47387917,0.00016521,2]
[399878170,1766799043329,-501.59555949,0.00016521,2]
[399878171,1766799043339,-501.60013318,0.00016521,2]
[399878172,1766799043348,-501.13015343,0.00016521,2]
[399878173,1766799043359,-1000.0,0.00016521,2]
[399878174,1766799043368,-501.87578424,0.00016521,2]
[399878175,1766799043377,-1000.0,0.00016521,2]
[399878176,1766799043386,-501.93885498,0.00016521,2]
[399878177,1766799043395,-503.01280937,0.00016521,2]
[399878178,1766799043404,-503.51973547,0.00016521,2]
[399878179,1766799043413,-502.21900785,0.00016521,2]
[399878180,1766799043423,-502.12022851,0.00016521,2]
[399878181,1766799043432,-376.61457363,0.00016613,2]
[399878182,1766799043442,-653.33262019,0.0001666,2]
[399878183,1766799043451,-376.61457363,0.00016708,2]
[399878184,1766799043461,-164.83,0.00016712,2]
[399878185,1766799043470,-150.0,0.0001673,2]
[399878186,1766799043479,-1000.0,0.00016732,2]
[399878187,1766799043488,-1000.0,0.00016741,2]
[399878188,1766799043498,-300.0,0.00016746,2]
[399878189,1766799043508,-203.59064575,0.00016759,2]
[399878190,1766799043518,-300.0,0.00016784,2]
[399878191,1766799043527,-376.61457363,0.00016804,2]
[399878192,1766799043537,-1000.0,0.00016811,2]
[399878193,1766799043546,-1000.0,0.00016812,2]
[399878194,1766799043555,-1000.0,0.00016818,2]
[399878195,1766799043564,-300.0,0.00016823,2]
[399878196,1766799043574,-1113.30940197,0.0001683,2]
[399878197,1766799043583,-300.0,0.00016832,2]
[399878198,1766799043593,-300.0,0.00016834,2]
[399878199,1766799043602,-200.0,0.00016863,2]
[399878200,1766799043612,-200.0,0.00016864,2]
[399878201,1766799043621,-1000.0,0.000169,2]
[399878202,1766799043630,-2269.14457347,0.000169,2]
[399878203,1766799043640,-196.91433714,0.000169,2]
[399878204,1766799043649,-8979.69579734,0.000169,2]
[399878205,1766799043658,-774.93837734,0.000169,2]
[399878206,1766799043668,-194.15320872,0.000169,2]
[399878207,1766799043677,-228.26447957,0.000169,2]
[399878208,1766799043687,-3589.76752166,0.000169,2]
[399878209,1766799043697,-25000.0,0.000169,3]
[399878210,1766799043711,-3411.0,0.000169,2]
[399878211,1766799043720,-1000.0,0.00016908,2]
[399878212,1766799043729,-300.0,0.00016934,2]
[399878213,1766799043738,-545.74787938,0.00016945,2]
[399878214,1766799043748,-300.0,0.00016957,2]
[399878215,1766799043757,-1000.0,0.0001697,2]
[399878216,1766799043766,-1000.0,0.0001697,2]
[399878217,1766799043775,-1000.0,0.0001697,2]
[399878218,1766799043785,-1000.0,0.0001697,2]
[399878219,1766799043794,-500.0,0.0001697,2]
[399878220,1766799043803,-500.0,0.0001697,2]
[399878221,1766799043812,-1000.0,0.0001697,2]
[399878222,1766799043822,-1000.0,0.0001697,2]
[399878223,1766799043831,-1000.0,0.0001697,2]
[399878224,1766799043840,-500.0,0.0001697,2]
[399878225,1766799043849,-802.46796525,0.0001697,2]
[399878226,1766799043859,-1000.0,0.0001697,2]
[399878227,1766799043868,-150.12296232,0.00016973,2]
[399878228,1766799043877,-163.53521313,0.00016973,2]
[399878229,1766799043887,-150.0,0.00016973,2]
[399878230,1766799043896,-150.0,0.00016973,2]
[399878231,1766799043906,-327594.04,0.00016986,2]
[399878232,1766799043919,-150.00000001,0.00016986,2]
[399878233,1766799043928,-150.0,0.00016986,2]
[399878234,1766799043938,-150.00000045,0.00016986,2]
[399878235,1766799043948,-99289.0655028,0.00016988,2]
[399878237,1766799043957,-2893.0769626,0.00016988,2]
[399878238,1766799043967,-1000.0,0.00016991,2]
[399878239,1766799043976,-1000.0,0.00016992,2]
[399878240,1766799043986,-300.0,0.00016999,2]
[399878241,1766799043995,-300.0,0.00016999,2]
[399878242,1766799044005,-300.0,0.00016999,2]
[399878243,1766799044014,-300.0,0.00016999,2]
[399878244,1766799044024,-300.0,0.00016999,2]
[399878245,1766799044033,-2216.98994142,0.00016999,2]
[399878246,1766799044043,-3137449.86692346,0.00017,2]
[399878247,1766799044052,-212744.9766193,0.00017,2]
[399878248,1766799044061,-150.0,0.00017,2]
[399878249,1766799044070,-2293.04691068,0.00017,2]
[399878250,1766799044079,-150.0,0.00017,2]
[399878251,1766799044089,-671.20407632,0.00017,2]
[399878252,1766799044099,-3778285.45985061,0.00017,2]
[399878253,1766799044108,-778.67184898,0.00017,2]
[399878254,1766799044118,-868.47141474,0.00017,2]
[399878255,1766799044128,-778225.12167819,0.00017,2]
[399878256,1766799044137,-160.0,0.00017,2]
[399878257,1766799044146,-250.0,0.00017,2]
[399878258,1766799044156,-151.0,0.00017,2]
[399878259,1766799044166,-151.0,0.00017,2]
[399878260,1766799044175,-462.167628,0.00017,2]
[399878261,1766799044185,-462.167628,0.00017,2]
[399878262,1766799044194,-462.167628,0.00017,2]
[399878263,1766799044203,-462.167628,0.00017,2]
[399878264,1766799044212,-462.167628,0.00017,2]
[399878265,1766799044222,-462.167628,0.00017,2]
[399878266,1766799044232,-462.167628,0.00017,2]
[399878267,1766799044241,-462.167628,0.00017,2]
[399878268,1766799044251,-462.167628,0.00017,2]
[399878269,1766799044261,-462.167628,0.00017,2]
[399878270,1766799044270,-462.167628,0.00017,2]
[399878271,1766799044280,-462.167628,0.00017,2]
[399878272,1766799044290,-2000.0,0.00017,2]
[399878273,1766799044299,-151.0,0.00017,2]
[399878274,1766799044310,-1003.677609,0.00017,2]
[399878275,1766799044320,-1003.677609,0.00017,2]
[399878276,1766799044329,-1003.677609,0.00017,2]
[399878277,1766799044339,-1003.677609,0.00017,2]
[399878278,1766799044348,-1003.677609,0.00017,2]
[399878279,1766799044357,-1003.677609,0.00017,2]
[399878280,1766799044367,-1003.677609,0.00017,2]
[399878281,1766799044376,-1003.677609,0.00017,2]
[399878282,1766799044386,-1003.677609,0.00017,2]
[399878283,1766799044395,-1003.677609,0.00017,2]
[399878284,1766799044404,-1003.677609,0.00017,2]
[399878285,1766799044414,-1003.677609,0.00017,2]
[399878286,1766799044423,-1256.0,0.00017,2]
[399878287,1766799044432,-1256.0,0.00017,2]
[399878288,1766799044442,-1256.0,0.00017,2]
[399878289,1766799044451,-153.0,0.00017,2]
[399878290,1766799044460,-1256.0,0.00017,2]
[399878291,1766799044469,-153.0,0.00017,2]
[399878292,1766799044479,-167.0,0.00017,2]
[399878293,1766799044488,-1297.73596332,0.00017,2]
[399878294,1766799044498,-167.0,0.00017,2]
[399878295,1766799044507,-153.0,0.00017,2]
[399878296,1766799044516,-168.05031571,0.00017,2]
[399878297,1766799044525,-153.0,0.00017,2]
[399878298,1766799044534,-153.0,0.00017,2]
[399878299,1766799044544,-153.0,0.00017,2]
[399878300,1766799044555,-158.0,0.00017,2]
[399878301,1766799044563,-153.0,0.00017,2]
[399878302,1766799044573,-158.0,0.00017,2]
[399878303,1766799044583,-153.0,0.00017,2]
[399878304,1766799044593,-158.0,0.00017,2]
[399878305,1766799044603,-153.0,0.00017,2]
[399878306,1766799044612,-158.0,0.00017,2]
[399878307,1766799044621,-153.0,0.00017,2]
[399878308,1766799044630,-158.0,0.00017,2]
[399878309,1766799044639,-153.0,0.00017,2]
[399878310,1766799044649,-154.15149242,0.00017,2]
[399878311,1766799044658,-153.0,0.00017,2]
[399878312,1766799044667,-153.0,0.00017,2]
[399878313,1766799044677,-153.0,0.00017,2]
[399878314,1766799044687,-153.0,0.00017,2]
[399878315,1766799044696,-153.0,0.00017,2]
[399878316,1766799044705,-155.47183189,0.00017,2]
[399878317,1766799044714,-151.0,0.00017,2]
[399878318,1766799044723,-151.0,0.00017,2]
[399878319,1766799044732,-151.0,0.00017,2]
[399878320,1766799044741,-151.0,0.00017,2]
[399878321,1766799044751,-151.0,0.00017,2]
[399878322,1766799044760,-151.0,0.00017,2]
[399878323,1766799044769,-151.0,0.00017,2]
[399878324,1766799044778,-151.0,0.00017,2]
[399878325,1766799044787,-151.0,0.00017,2]
[399878326,1766799044796,-151.0,0.00017,2]
[399878327,1766799044806,-151.0,0.00017,2]
[399878328,1766799044815,-151.0,0.00017,2]
[399878329,1766799044824,-151.0,0.00017,2]
[399878330,1766799044833,-151.0,0.00017,2]
[399878331,1766799044843,-420.78051888,0.00017,2]
[399878332,1766799044852,-151.0,0.00017,2]
[399878333,1766799044862,-151.0,0.00017,2]
[399878334,1766799044871,-151.0,0.00017,2]
[399878335,1766799044881,-151.0,0.00017,2]
[399878336,1766799044890,-151.0,0.00017,2]
[399878337,1766799044900,-151.0,0.00017,2]
[399878338,1766799044910,-151.0,0.00017,2]
[399878339,1766799044921,-151.0,0.00017,2]
[399878340,1766799044931,-151.0,0.00017,2]
[399878341,1766799044941,-151.0,0.00017,2]
[399878342,1766799044952,-151.0,0.00017,2]
[399878343,1766799044961,-151.0,0.00017,2]
[399878344,1766799044971,-3021037.99144553,0.00017,2]
[399878345,1766799044981,-881.0,0.00017,2]
[399878346,1766799044992,-305.0,0.00017,2]
[399878347,1766799045002,-553.79164253,0.00017,2]
[399878348,1766799045011,-48241.46114841,0.00017,2]
[399878349,1766799045020,-150.0,0.00017,2]
[399878350,1766799045030,-15126.59491268,0.00017,2]
[399878351,1766799045039,-150.0,0.00017,2]
[399878352,1766799045048,-150.0,0.00017028,2]
[399878353,1766799045057,-150.0,0.00017055,2]
[399878355,1766799045067,-1000.0,0.00017059,2]
[399878356,1766799045076,-428.87165448,0.00017068,2]
[399878357,1766799045085,-1500.0,0.00017068,2]
[399878358,1766799045094,-1500.0,0.00017068,2]
[399878359,1766799045103,-1500.0,0.00017068,2]
[399878360,1766799045113,-150.60350845,0.00017068,2]
[399878361,1766799045123,-1500.0,0.00017068,2]
[399878362,1766799045132,-200.0,0.00017083,2]
[399878363,1766799045142,-1559.5,0.0001717,2]
[399878364,1766799045151,-1218.05,0.0001726,2]
[399878365,1766799045161,-2441.32,0.0001726,2]
[399878366,1766799045172,-1220.66,0.0001726,2]
[399878367,1766799045181,-169.42,0.00017266,2]
[399878368,1766799045190,-289.4,0.00017278,2]
[399878369,1766799045199,-920.05503367,0.00017315,2]
[399878370,1766799045208,-920.05503367,0.00017397,2]
[399878371,1766799045218,-150.0,0.000174,7]
[399878372,1766799045227,-920.05503367,0.00017479,2]
[399878373,1766799045236,-334.5472959,0.00017518,2]
[399878374,1766799045245,-287.61899177,0.00017518,2]
[399878375,1766799045255,-920.05503367,0.00017534,2]
[399878376,1766799045264,-151.66634213,0.00017598,2]
[399878377,1766799045273,-920.05503367,0.00017616,2]
[399878378,1766799045283,-2000.0,0.00017616,2]
[399878379,1766799045293,-2000.0,0.00017616,2]
[399878380,1766799045302,-2000.0,0.00017616,2]
[399878381,1766799045312,-1006.3069546,0.00017616,2]
[399878382,1766799045321,-920.05503367,0.00017671,2]
[399878383,1766799045330,-160.47,0.0001771,2]
[399878384,1766799045340,-920.05503367,0.00017753,2]
[399878385,1766799045349,-4609.0,0.00017758,2]
[399878386,1766799045359,-500.0,0.00017808,2]
[399878387,1766799045369,-920.05503367,0.00017808,2]
[399878388,1766799045379,-500.0,0.00017835,2]
[399878389,1766799045388,-617.99663892,0.00017863,2]
[399878390,1766799045398,-920.05503367,0.0001789,2]
[399878391,1766799045407,-274.15,0.00017904,2]
[399878392,1766799045417,-1220.66,0.00017904,2]
[399878393,1766799045426,-1621.72,0.00017904,2]
[399878394,1766799045437,-920.05503367,0.00017945,2]
[399878395,1766799045446,-2999.99,0.00017998,2]
[399878396,1766799045456,-300.0,0.00017999,2]
[399878397,1766799045466,-300.0,0.00017999,2]
[399878398,1766799045475,-300.0,0.00017999,2]
[399878399,1766799045486,-292368.73021692,0.00018,2]
[399878400,1766799045496,-173.72717244,0.00018,2]
[399878402,1766799045506,-397432.37387599,0.00018,2]
[399878403,1766799045515,-462.167628,0.00018,2]
[399878404,1766799045525,-462.167628,0.00018,2]
[399878405,1766799045535,-462.167628,0.00018,2]
[399878406,1766799045544,-462.167628,0.00018,2]
[399878407,1766799045555,-1003.677609,0.00018,2]
[399878408,1766799045564,-1003.677609,0.00018,2]
[399878409,1766799045574,-1003.677609,0.00018,2]
[399878410,1766799045584,-1003.677609,0.00018,2]
[399878411,1766799045594,-1003.677609,0.00018,2]
[399878412,1766799045603,-1003.677609,0.00018,2]
[399878413,1766799045613,-1003.677609,0.00018,2]
[399878414,1766799045623,-1003.677607,0.00018,2]
[399878415,1766799045633,-151.0,0.00018,2]
[399878416,1766799045644,-151.0,0.00018,2]
[399878418,1766799045654,-151.0,0.00018,2]
[399878419,1766799045664,-151.0,0.00018,2]
[399878420,1766799045674,-151.0,0.00018,2]
[399878421,1766799045683,-151.0,0.00018,2]
[399878422,1766799045693,-237.702889,0.00018,2]
[399878423,1766799045703,-151.0,0.00018,2]
[399878424,1766799045714,-151.0,0.00018,2]
[399878425,1766799045725,-157.769168,0.00018,2]
[399878426,1766799045735,-920.05503367,0.00018027,2]
[399878427,1766799045744,-169.63,0.00018038,2]
[399878428,1766799045754,-1000.0,0.00018082,2]
[399878429,1766799045763,-920.05503367,0.00018082,2]
[399878430,1766799045773,-554.37,0.00018082,2]
[399878431,1766799045783,-300.0,0.00018082,2]
[399878432,1766799045792,-300.64,0.00018082,2]
[399878433,1766799045802,-554.37,0.00018082,2]
[399878434,1766799045811,-1114.07,0.00018082,2]
[399878435,1766799045821,-174.35,0.00018082,2]
[399878436,1766799045831,-170.82,0.00018082,2]
[399878437,1766799045840,-170.82,0.00018082,2]
[399878438,1766799045850,-164.89,0.00018082,2]
[399878439,1766799045860,-1773.55679562,0.000181,2]
[399878440,1766799045870,-150.0,0.00018137,2]